bitfinex/quotes_BTCUSD_20250726
["timestamp","ask_amount","ask_price","bid_price","bid_amount"]
[1753542449632,5.32131471,118260.0,118250.0,0.35310275]
[1753542450104,4.95215769,118260.0,118250.0,0.35310275]
[1753542450792,4.95215762,118260.0,118250.0,0.35310275]
[1753542452681,4.9606132,118260.0,118250.0,0.35310275]
[1753542453210,5.32977022,118260.0,118250.0,0.35310275]
[1753542453408,5.32131464,118260.0,118250.0,0.35310275]
[1753542453958,4.95215762,118260.0,118250.0,0.35310275]
[1753542458537,4.96061327,118260.0,118250.0,0.35310275]
[1753542458793,4.95215762,118260.0,118250.0,0.35310275]
[1753542459017,4.96061327,118260.0,118250.0,0.35310275]
[1753542459245,4.95215762,118260.0,118250.0,0.35310275]
[1753542459457,4.96061427,118260.0,118250.0,0.35310275]
[1753542459688,5.49043474,118260.0,118250.0,0.3081803]
[1753542459919,4.94370289,118260.0,118250.0,0.31663645]
[1753542460130,4.94370289,118260.0,118250.0,0.33989645]
[1753542460330,4.94370289,118260.0,118250.0,0.34303645]
[1753542460811,5.33118991,118260.0,118250.0,0.31663645]
[1753542461017,5.31285991,118260.0,118250.0,0.31663645]
[1753542461220,5.31285991,118260.0,118250.0,0.21165645]
[1753542461421,5.31285991,118260.0,118250.0,0.33977645]
[1753542461646,4.94370289,118260.0,118250.0,0.33977645]
[1753542461854,4.94370289,118260.0,118250.0,0.34291645]
[1753542462691,4.94370274,118260.0,118250.0,0.34291645]
[1753542463166,4.94370274,118260.0,118250.0,0.34508645]
[1753542463167,4.94370225,118260.0,118250.0,0.34508645]
[1753542463384,4.94370225,118260.0,118250.0,0.36048645]
[1753542464549,4.918336,118260.0,118250.0,0.37578645]
[1753542464843,4.9249113,118260.0,118250.0,0.74494347]
[1753542465102,0.03791081,118260.0,118250.0,0.74494347]
[1753542465333,0.0294553,118260.0,118250.0,0.74494347]
[1753542465565,0.021,118260.0,118250.0,0.74494347]
[1753542465795,0.0294553,118260.0,118250.0,0.82942077]
[1753542466222,0.0294553,118260.0,118250.0,0.74494347]
[1753542466852,0.03791074,118260.0,118250.0,0.74494347]
[1753542467083,0.0294553,118260.0,118250.0,0.74494347]
[1753542469562,0.03791067,118260.0,118250.0,0.74494347]
[1753542470047,0.03791067,118260.0,118250.0,0.37578645]
[1753542470259,0.04636625,118260.0,118250.0,0.74494347]
[1753542470477,0.04636618,118260.0,118250.0,0.74494347]
[1753542470700,0.03791067,118260.0,118250.0,0.74494347]
[1753542475709,0.03791067,118260.0,118250.0,0.82942077]
[1753542476342,0.03791067,118260.0,118250.0,0.74494347]
[1753542476844,0.0294553,118260.0,118250.0,0.74494347]
[1753542477537,0.03791074,118260.0,118250.0,0.37578645]
[1753542477749,0.03791074,118260.0,118250.0,0.74494347]
[1753542478710,0.021,118260.0,118250.0,0.74494347]
[1753542478937,0.521,118260.0,118250.0,0.82942077]
[1753542479369,0.021,118260.0,118250.0,0.82942077]
[1753542480308,0.021,118260.0,118250.0,0.74494347]
[1753542482080,0.021,118260.0,118250.0,0.37578645]
[1753542482272,0.021,118260.0,118250.0,0.74494347]
[1753542485427,0.521,118260.0,118250.0,0.74494347]
[1753542485633,0.021,118260.0,118250.0,0.74494347]
[1753542486568,0.521,118260.0,118250.0,0.37578645]
[1753542486774,0.521,118260.0,118250.0,0.74494347]
[1753542486920,0.021,118260.0,118250.0,0.74494347]
[1753542488447,0.021,118260.0,118250.0,0.82942077]
[1753542488683,0.021,118260.0,118250.0,0.46026375]
[1753542488853,0.021,118260.0,118250.0,0.74494347]
[1753542490072,0.021,118260.0,118250.0,0.37578645]
[1753542490291,0.021,118260.0,118250.0,0.74494347]
[1753542491770,0.021,118260.0,118250.0,0.72964347]
[1753542492010,0.021,118260.0,118250.0,0.34508645]
[1753542495683,0.021,118260.0,118250.0,0.71424347]
[1753542496575,0.021,118260.0,118250.0,0.34508645]
[1753542496789,0.02945537,118260.0,118250.0,0.71424347]
[1753542497009,0.0294553,118260.0,118250.0,0.71424347]
[1753542497655,0.0294553,118260.0,118250.0,0.34508645]
[1753542498791,0.021,118260.0,118250.0,0.34508645]
[1753542500746,0.0294553,118260.0,118250.0,0.34508645]
[1753542500892,0.021,118260.0,118250.0,0.34508645]
[1753542501731,0.0294553,118260.0,118250.0,0.34508645]
[1753542502569,0.021,118260.0,118250.0,0.34508645]
[1753542505578,0.021,118260.0,118250.0,0.36128645]
[1753542507531,0.0294553,118260.0,118250.0,0.36128645]
[1753542507760,0.021,118260.0,118250.0,0.36128645]
[1753542508276,0.02945537,118260.0,118250.0,0.36128645]
[1753542508955,0.41639239,118260.0,118250.0,0.32817407]
[1753542509182,5.54086474,118260.0,118250.0,0.15457119]
[1753542509423,5.5324093,118260.0,118250.0,0.28261119]
[1753542510624,5.35483447,118260.0,118250.0,0.29106777]
[1753542511019,5.35483447,118260.0,118250.0,0.28261119]
[1753542511236,5.35483447,118260.0,118250.0,0.29106784]
[1753542511457,5.36329041,118260.0,118250.0,0.29106784]
[1753542511699,5.36329041,118260.0,118250.0,0.29952442]
[1753542511897,5.35483447,118260.0,118250.0,0.30798093]
[1753542512546,5.35483411,118260.0,118250.0,0.30798093]
[1753542512756,5.36328991,118260.0,118250.0,0.31643737]
[1753542513207,5.36328991,118260.0,118250.0,0.30798093]
[1753542513416,5.36328991,118260.0,118250.0,0.31643737]
[1753542513649,5.36328991,118260.0,118250.0,0.29106784]
[1753542514120,5.37174585,118260.0,118250.0,0.29106784]
[1753542514370,5.36328991,118260.0,118250.0,0.2910677]
[1753542514591,5.34495991,118260.0,118250.0,0.2910677]
[1753542514809,5.34495991,118260.0,118250.0,0.29952414]
[1753542515026,5.34495991,118260.0,118250.0,0.32266414]
[1753542515246,5.34495991,118260.0,118250.0,0.30575119]
[1753542515467,5.34495991,118260.0,118250.0,0.31420777]
[1753542515729,5.34495991,118260.0,118250.0,0.32266428]
[1753542515904,5.34495991,118260.0,118250.0,0.33112072]
[1753542517318,5.35341585,118260.0,118250.0,0.31420777]
[1753542517753,5.34495991,118260.0,118250.0,0.32266428]
[1753542518166,5.33650411,118260.0,118250.0,0.33112065]
[1753542518562,5.34495991,118260.0,118250.0,0.33112072]
[1753542518779,5.34495984,118260.0,118250.0,0.33957709]
[1753542519619,5.35341564,118260.0,118250.0,0.33112072]
[1753542519891,5.35341564,118260.0,118250.0,0.33957709]
[1753542520254,5.35341564,118260.0,118250.0,0.33112072]
[1753542520460,5.35341564,118260.0,118250.0,0.33957709]
[1753542520677,0.85795964,118260.0,118250.0,0.33957709]
[1753542520932,5.75341564,118260.0,118250.0,0.33957709]
[1753542521141,5.37580282,118260.0,118250.0,0.33957709]
[1753542521349,5.71285984,118260.0,118250.0,0.34803339]
[1753542521615,5.71285984,118260.0,118250.0,0.33957709]
[1753542522043,5.71285984,118260.0,118250.0,0.34266709]
[1753542522193,5.71285984,118260.0,118250.0,0.35112339]
[1753542522406,5.71285984,118260.0,118250.0,0.34266709]
[1753542523017,0.82585971,118260.0,118250.0,0.33421072]
[1753542523361,5.72131571,118260.0,118250.0,0.33421072]
[1753542523520,5.71285984,118260.0,118250.0,0.34266709]
[1753542524081,5.71285984,118260.0,118250.0,0.35112339]
[1753542524432,5.70440411,118260.0,118250.0,0.35112339]
[1753542524648,5.70440411,118260.0,118250.0,0.35112304]
[1753542526152,0.80894811,118260.0,118250.0,0.35112304]
[1753542526362,5.70440411,118260.0,118250.0,0.34266681]
[1753542527180,5.70440411,118260.0,118250.0,0.35112304]
[1753542527395,5.70440411,118260.0,118250.0,0.35112268]
[1753542527575,5.70440411,118260.0,118250.0,0.34266653]
[1753542527820,5.70440411,118260.0,118250.0,0.3342103]
[1753542528838,5.71285991,118260.0,118250.0,0.325754]
[1753542528972,5.71285991,118260.0,118250.0,0.3342103]
[1753542529416,5.71285984,118260.0,118250.0,0.3342103]
[1753542530208,5.70440411,118260.0,118250.0,0.3342103]
[1753542530422,5.70440411,118260.0,118250.0,0.35112268]
[1753542530761,5.70440411,118260.0,118250.0,0.3342103]
[1753542531391,5.70440411,118260.0,118250.0,0.34266653]
[1753542531882,5.71285991,118260.0,118250.0,0.3342103]
[1753542532297,5.71285984,118260.0,118250.0,0.325754]
[1753542532494,5.71285984,118260.0,118250.0,0.3342103]
[1753542532701,5.71285984,118260.0,118250.0,0.34266653]
[1753542533470,5.71285984,118260.0,118250.0,0.3342103]
[1753542533718,5.71285984,118260.0,118250.0,0.34266653]
[1753542533932,5.71285984,118260.0,118250.0,0.3342103]
[1753542534985,5.72131571,118260.0,118250.0,0.325754]
[1753542535199,5.71285984,118260.0,118250.0,0.3342103]
[1753542535609,5.71285984,118260.0,118250.0,0.325754]
[1753542535894,5.72131564,118260.0,118250.0,0.3342103]
[1753542536462,5.72131564,118260.0,118250.0,0.325754]
[1753542536679,5.72131564,118260.0,118250.0,0.3342103]
[1753542536823,5.72131564,118260.0,118250.0,0.325754]
[1753542537053,5.72977151,118260.0,118250.0,0.325754]
[1753542537242,5.72131564,118260.0,118250.0,0.325754]
[1753542537439,5.89043503,118260.0,118250.0,0.29952442]
[1753542537647,5.94036503,118260.0,118250.0,0.30798093]
[1753542537842,5.94036503,118260.0,118250.0,0.29952442]
[1753542538055,5.94036503,118260.0,118250.0,0.30798093]
[1753542538255,5.90876503,118260.0,118250.0,0.30798093]
[1753542538455,5.49043503,118260.0,118250.0,0.33998737]
[1753542538657,0.59497903,118260.0,118250.0,0.33153093]
[1753542538862,5.49043503,118260.0,118250.0,0.33153093]
[1753542539731,0.58652338,118260.0,118250.0,0.33153093]
[1753542539880,5.48197938,118260.0,118250.0,0.33153093]
[1753542540347,5.47352365,118260.0,118250.0,0.32307442]
[1753542540486,5.47352365,118260.0,118250.0,0.33998737]
[1753542540688,5.47352365,118260.0,118250.0,0.33153093]
[1753542543260,4.93524738,118260.0,118250.0,0.3484436]
[1753542543456,5.31286034,118260.0,118250.0,0.35153367]
[1753542544272,5.31286034,118260.0,118250.0,0.35153374]
[1753542544906,5.31286034,118260.0,118250.0,0.35153339]
[1753542545131,4.94370332,118260.0,118250.0,0.35153339]
[1753542545383,5.31286034,118260.0,118250.0,0.35153339]
[1753542545604,5.48197923,118260.0,118250.0,0.32616428]
[1753542545823,5.48197923,118260.0,118250.0,0.30925119]
[1753542546098,5.48197923,118260.0,118250.0,0.31770784]
[1753542546281,5.55800095,118260.0,118250.0,0.15468]
[1753542546534,0.66254495,118260.0,118250.0,0.32381319]
[1753542546756,0.57806765,118260.0,118250.0,0.34072642]
[1753542546978,5.47352365,118260.0,118250.0,0.34072642]
[1753542547192,5.47352365,118260.0,118250.0,0.34918286]
[1753542547399,5.47352365,118260.0,118250.0,0.35763923]
[1753542547602,5.47352365,118260.0,118250.0,0.36609553]
[1753542547779,5.47352365,118260.0,118250.0,0.35763923]
[1753542548412,5.47352365,118260.0,118250.0,0.34918286]
[1753542549081,5.47352365,118260.0,118250.0,0.35763923]
[1753542549299,4.93336738,118260.0,118250.0,0.35960923]
[1753542549512,4.93336738,118260.0,118250.0,0.39936546]
[1753542549717,4.93336738,118260.0,118250.0,0.39936496]
[1753542550613,4.93336738,118260.0,118250.0,0.39090881]
[1753542551138,4.94182332,118260.0,118250.0,0.38245258]
[1753542551362,4.94182332,118260.0,118250.0,0.39090888]
[1753542551563,5.31098034,118260.0,118250.0,0.39936511]
[1753542551979,5.3025244,118260.0,118250.0,0.39936511]
[1753542552178,4.93336738,118260.0,118250.0,0.38245258]
[1753542552485,5.3025244,118260.0,118250.0,0.38245258]
[1753542552657,5.3025244,118260.0,118250.0,0.39090873]
[1753542552859,4.94182275,118260.0,118250.0,0.39090873]
[1753542553099,4.95027862,118260.0,118250.0,0.39090888]
[1753542553295,4.95027862,118260.0,118250.0,0.39936511]
[1753542554136,4.95873456,118260.0,118250.0,0.39090888]
[1753542554885,4.95873456,118260.0,118250.0,0.39936511]
[1753542555085,4.95027862,118260.0,118250.0,0.39936511]
[1753542555291,4.94182275,118260.0,118250.0,0.39936511]
[1753542555488,4.94182275,118260.0,118250.0,0.37580888]
[1753542555749,5.31943571,118260.0,118250.0,0.37580888]
[1753542555955,5.31943571,118260.0,118250.0,0.38426511]
[1753542556336,4.95027869,118260.0,118250.0,0.38426511]
[1753542556749,4.95027869,118260.0,118250.0,0.39946511]
[1753542558246,5.11939758,118260.0,118250.0,0.37409621]
[1753542559076,4.94182275,118260.0,118250.0,0.38255251]
[1753542559281,4.95027869,118260.0,118250.0,0.38255258]
[1753542561420,4.94182275,118260.0,118250.0,0.39100888]
[1753542562261,4.95027869,118260.0,118250.0,0.38255258]
[1753542562472,4.95027869,118260.0,118250.0,0.37409621]
[1753542562671,5.31943571,118260.0,118250.0,0.37409621]
[1753542563070,5.31943571,118260.0,118250.0,0.36563977]
[1753542563293,5.32131571,118260.0,118250.0,0.36563977]
[1753542563739,5.32131571,118260.0,118250.0,0.37409628]
[1753542564836,5.32131571,118260.0,118250.0,0.38255272]
[1753542565452,5.4904346,118260.0,118250.0,0.35889628]
[1753542566057,5.4904346,118260.0,118250.0,0.36735272]
[1753542566227,0.5949786,118260.0,118250.0,0.36735272]
[1753542566443,5.4904346,118260.0,118250.0,0.35889628]
[1753542566649,5.4904346,118260.0,118250.0,0.34198319]
[1753542566852,5.48197923,118260.0,118250.0,0.35043977]
[1753542567453,5.47352365,118260.0,118250.0,0.35043984]
[1753542567560,5.47352365,118260.0,118250.0,0.35889642]
[1753542567976,5.47352365,118260.0,118250.0,0.35043984]
[1753542568189,5.46506785,118260.0,118250.0,0.35043984]
[1753542568797,5.46506785,118260.0,118250.0,0.35889642]
[1753542569242,5.46506785,118260.0,118250.0,0.35043984]
[1753542569457,5.46506785,118260.0,118250.0,0.35889642]
[1753542569675,5.46506785,118260.0,118250.0,0.34001319]
[1753542570554,5.46506785,118260.0,118250.0,0.34846977]
[1753542570786,5.46506785,118260.0,118250.0,0.34846984]
[1753542571919,5.46506785,118260.0,118250.0,0.35692642]
[1753542572138,5.46506785,118260.0,118250.0,0.34001319]
[1753542572356,5.46506785,118260.0,118250.0,0.34846984]
[1753542572703,5.46506785,118260.0,118250.0,0.35692642]
[1753542572918,5.46506785,118260.0,118250.0,0.36538293]
[1753542573765,5.46506785,118260.0,118250.0,0.35692642]
[1753542575205,5.46506785,118260.0,118250.0,0.34001319]
[1753542575418,5.46506785,118260.0,118250.0,0.34846984]
[1753542576362,5.46506785,118260.0,118250.0,0.35692642]
[1753542576886,5.46506785,118260.0,118250.0,0.34846984]
[1753542577098,5.45661191,118260.0,118250.0,0.34001319]
[1753542577268,5.45661191,118260.0,118250.0,0.04284]
[1753542577472,5.45661191,118260.0,118250.0,0.17925665]
[1753542577671,5.45661191,118260.0,118250.0,0.34838984]
[1753542582837,0.56115591,118260.0,118250.0,0.34838984]
[1753542583054,5.45661191,118260.0,118250.0,0.34838984]
[1753542599307,5.58453191,118260.0,118250.0,0.17076]
[1753542600675,5.58453191,118260.0,118250.0,0.12792]
[1753542600676,5.77181651,118260.0,118250.0,0.12792]
[1753542600895,5.4730457,118250.0,118240.0,0.15409]
[1753542601111,5.97200272,118250.0,118240.0,0.15409]
[1753542601311,1.07654672,118250.0,118240.0,0.02297]
[1753542601528,5.97200272,118250.0,118240.0,0.15089]
[1753542601711,5.97200272,118250.0,118240.0,0.15409]
[1753542602320,5.97400272,118250.0,118240.0,0.15409]
[1753542602914,5.97310272,118250.0,118240.0,0.15409]
[1753542604022,5.97410272,118250.0,118240.0,0.15409]
[1753542604665,5.57410272,118250.0,118240.0,0.15409]
[1753542605116,0.17760472,118240.0,118230.0,0.23498974]
[1753542605334,5.44409774,118240.0,118230.0,0.37136754]
[1753542605765,5.29186478,118240.0,118230.0,0.39033293]
[1753542605990,5.28340741,118240.0,118230.0,0.39879051]
[1753542607134,5.28340712,118240.0,118230.0,0.39879051]
[1753542607347,5.29186435,118240.0,118230.0,0.39879051]
[1753542608144,5.30032165,118240.0,118230.0,0.39879051]
[1753542609000,5.70032165,118240.0,118230.0,0.39879051]
[1753542609110,5.70877902,118240.0,118230.0,0.39879051]
[1753542609326,5.70877902,118240.0,118230.0,0.39033293]
[1753542609605,5.71804919,118240.0,118230.0,0.39033293]
[1753542610459,5.87028258,118240.0,118230.0,0.37291754]
[1753542611089,5.87028258,118240.0,118230.0,0.38137527]
[1753542611090,0.97482658,118240.0,118230.0,0.38137527]
[1753542611298,5.87028258,118240.0,118230.0,0.38983293]
[1753542614929,0.97482658,118240.0,118230.0,0.38983293]
[1753542615149,5.87028258,118240.0,118230.0,0.38983293]
[1753542618909,5.69267772,118240.0,118230.0,0.38983293]
[1753542620807,5.69267772,118240.0,118230.0,0.39829051]
[1753542624863,5.69267772,118240.0,118230.0,0.38983293]
[1753542625008,5.69267772,118240.0,118230.0,0.39829051]
[1753542625890,5.32352041,118240.0,118230.0,0.39829051]
[1753542626130,5.69267743,118240.0,118230.0,0.39829051]
[1753542627343,5.88034205,118240.0,118230.0,0.34469776]
[1753542627573,5.88034205,118240.0,118230.0,0.31349776]
[1753542627966,5.95636234,118240.0,118230.0,0.32195584]
[1753542628176,5.87188504,118240.0,118230.0,0.30503989]
[1753542628437,5.85497051,118240.0,118230.0,0.2965818]
[1753542628587,5.85497051,118240.0,118230.0,0.31349783]
[1753542628803,5.83664051,118240.0,118230.0,0.31349783]
[1753542629012,5.84509781,118240.0,118230.0,0.2184857]
[1753542629216,5.84509781,118240.0,118230.0,0.3464057]
[1753542629640,5.84509781,118240.0,118230.0,0.3548635]
[1753542629861,5.84509781,118240.0,118230.0,0.3464057]
[1753542630598,5.84509781,118240.0,118230.0,0.3548635]
[1753542630804,5.86201226,118240.0,118230.0,0.36332123]
[1753542631230,5.69286477,118240.0,118230.0,0.3815208]
[1753542631467,5.69286477,118240.0,118230.0,0.37306314]
[1753542631855,5.69286477,118240.0,118230.0,0.36460541]
[1753542632295,5.32370775,118240.0,118230.0,0.36460541]
[1753542632498,5.32370775,118240.0,118230.0,0.37306314]
[1753542633138,0.42825175,118240.0,118230.0,0.37306314]
[1753542633342,5.69286477,118240.0,118230.0,0.37306314]
[1753542633504,5.69286477,118240.0,118230.0,0.36460541]
[1753542633989,5.69286477,118240.0,118230.0,0.37306314]
[1753542634206,5.70125315,118240.0,118230.0,0.36460541]
[1753542634629,5.70125315,118240.0,118230.0,0.38110541]
[1753542635301,5.70125315,118240.0,118230.0,0.38956314]
[1753542635712,5.70125315,118240.0,118230.0,0.38110541]
[1753542636627,5.70125315,118240.0,118230.0,0.36460541]
[1753542636935,5.70125315,118240.0,118230.0,0.37306314]
[1753542638776,5.70125315,118240.0,118230.0,0.38956314]
[1753542639497,5.87040064,118240.0,118230.0,0.38956314]
[1753542640362,0.97494464,118240.0,118230.0,0.38956314]
[1753542640549,5.87040064,118240.0,118230.0,0.38956314]
[1753542641946,5.87040064,118240.0,118230.0,0.38110541]
[1753542642589,5.87040064,118240.0,118230.0,0.37264761]
[1753542642824,5.87040064,118240.0,118230.0,0.34768974]
[1753542643065,5.86194356,118240.0,118230.0,0.3561479]
[1753542643283,5.85348626,118240.0,118230.0,0.04265]
[1753542643552,0.5,118220.0,118210.0,0.04395]
[1753542643739,5.47226351,118220.0,118210.0,0.12788]
[1753542643958,4.90391537,118210.0,118200.0,0.24507164]
[1753542644174,4.92271312,118210.0,118200.0,0.38987132]
[1753542644386,4.93117249,118210.0,118200.0,0.38987139]
[1753542644824,4.92271312,118210.0,118200.0,0.39881627]
[1753542645244,4.93117242,118210.0,118200.0,0.39035654]
[1753542645456,4.93117242,118210.0,118200.0,0.37405654]
[1753542645662,4.92271305,118210.0,118200.0,0.37405654]
[1753542645870,4.91425389,118210.0,118200.0,0.38251627]
[1753542646073,4.92271305,118210.0,118200.0,0.40095627]
[1753542646966,4.92371305,118210.0,118200.0,0.40095627]
[1753542647584,0.02825705,118210.0,118200.0,0.40095627]
[1753542647834,4.92371305,118210.0,118200.0,0.40095627]
[1753542649276,4.93217235,118210.0,118200.0,0.40095627]
[1753542649749,4.92371305,118210.0,118200.0,0.40095627]
[1753542650331,4.91525389,118210.0,118200.0,0.40095627]
[1753542651935,4.90679487,118210.0,118200.0,0.40095627]
[1753542652515,4.91525389,118210.0,118200.0,0.40095627]
[1753542652720,4.90679487,118210.0,118200.0,0.40095627]
[1753542653197,4.90679487,118210.0,118200.0,0.48543357]
[1753542653759,4.90679487,118210.0,118200.0,0.40095627]
[1753542654160,4.898336,118210.0,118200.0,0.40095627]
[1753542654370,4.896456,118210.0,118200.0,0.40095627]
[1753542654789,4.90491494,118210.0,118200.0,0.40095627]
[1753542655705,4.91337403,118210.0,118200.0,0.40095627]
[1753542655925,4.90491494,118210.0,118200.0,0.40095627]
[1753542656312,4.91337403,118210.0,118200.0,0.40095627]
[1753542656608,4.91337396,118210.0,118200.0,0.40095627]
[1753542657076,4.92183312,118210.0,118200.0,0.40095627]
[1753542657243,4.91337396,118210.0,118200.0,0.40095627]
[1753542658529,4.92183312,118210.0,118200.0,0.40095627]
[1753542660278,4.93029242,118210.0,118200.0,0.40095627]
[1753542660538,4.92183312,118210.0,118200.0,0.40095627]
[1753542662289,4.93029242,118210.0,118200.0,0.40095627]
[1753542662926,4.92183312,118210.0,118200.0,0.40095627]
[1753542663354,4.93029249,118210.0,118200.0,0.40095627]
[1753542663569,4.92183312,118210.0,118200.0,0.40095627]
[1753542663803,4.93029242,118210.0,118200.0,0.40095627]
[1753542665716,4.93217242,118210.0,118200.0,0.40095627]
[1753542670389,5.30978931,118210.0,118200.0,0.38465627]
[1753542670595,5.30978931,118210.0,118200.0,0.38251627]
[1753542670907,5.30978931,118210.0,118200.0,0.35486627]
[1753542671069,5.32811931,118210.0,118200.0,0.33986627]
[1753542671675,5.30978931,118210.0,118200.0,0.33986627]
[1753542671886,5.30978931,118210.0,118200.0,0.36395627]
[1753542672094,5.30978931,118210.0,118200.0,0.38035627]
[1753542672303,5.30132987,118210.0,118200.0,0.38350627]
[1753542673014,5.2928705,118210.0,118200.0,0.38350627]
[1753542673419,5.2928705,118210.0,118200.0,0.39950627]
[1753542675758,5.30132987,118210.0,118200.0,0.40153627]
[1753542675965,5.30132987,118210.0,118200.0,0.38553627]
[1753542676443,5.2928705,118210.0,118200.0,0.38350627]
[1753542677047,5.2928705,118210.0,118200.0,0.38553627]
[1753542677178,5.2928705,118210.0,118200.0,0.40163627]
[1753542677704,0.3974145,118210.0,118200.0,0.40163627]
[1753542677887,5.2928705,118210.0,118200.0,0.40163627]
[1753542682486,5.2928705,118210.0,118200.0,0.21198627]
[1753542682703,6.51109373,118210.0,118200.0,0.00048515]
[1753542682935,6.14193671,118210.0,118200.0,0.00048515]
[1753542683911,6.16735871,118210.0,118200.0,0.00048515]
[1753542684106,6.16635871,118210.0,118200.0,0.00048515]
[1753542684323,6.08188141,118210.0,118200.0,0.00048515]
[1753542684753,6.08388141,118210.0,118200.0,0.00048515]
[1753542686713,6.08588141,118210.0,118200.0,0.00048515]
[1753542689117,1.19042541,118210.0,118200.0,0.00048515]
[1753542689324,6.08588141,118210.0,118200.0,0.00048515]
[1753542689542,1.27490271,118210.0,118200.0,0.00048515]
[1753542689678,6.17035871,118210.0,118200.0,0.00048515]
[1753542691321,6.53951573,118210.0,118200.0,0.00048515]
[1753542691539,6.17035871,118210.0,118200.0,0.00048515]
[1753542693776,1.27490271,118210.0,118200.0,0.00048515]
[1753542694163,6.16918871,118210.0,118200.0,0.00048515]
[1753542694381,6.19469611,118210.0,118200.0,0.00048515]
[1753542694727,6.58247215,118210.0,118200.0,0.00048515]
[1753542695136,6.65880787,118210.0,118200.0,0.00048515]
[1753542695391,5.4531122,118180.0,118170.0,0.0004]
[1753542695625,6.05211124,118180.0,118170.0,0.00054567]
[1753542695912,1.15665524,118180.0,118170.0,0.00054567]
[1753542696158,6.07753724,118180.0,118170.0,0.00054567]
[1753542697032,6.07853724,118180.0,118170.0,0.00054567]
[1753542697609,6.07953724,118180.0,118170.0,0.00054567]
[1753542697831,6.05411124,118180.0,118170.0,0.00054567]
[1753542698278,6.07244124,118180.0,118170.0,0.00054567]
[1753542700026,6.09786924,118180.0,118170.0,0.00054567]
[1753542704025,1.20241324,118180.0,118170.0,0.00054567]
[1753542704246,6.09786924,118180.0,118170.0,0.00054567]
[1753542705187,6.10378308,118180.0,118170.0,0.00054567]
[1753542705728,1.20832708,118180.0,118170.0,0.00054567]
[1753542705933,6.10378308,118180.0,118170.0,0.00054567]
[1753542706117,1.20832708,118180.0,118170.0,0.00054567]
[1753542706330,6.10378308,118180.0,118170.0,0.00054567]
[1753542706528,5.73462606,118180.0,118170.0,0.00054567]
[1753542706748,6.10378308,118180.0,118170.0,0.00054567]
[1753542707172,6.08545308,118180.0,118170.0,0.00054567]
[1753542707607,6.08545308,118180.0,118170.0,0.02527567]
[1753542709655,6.06955308,118180.0,118170.0,0.02527567]
[1753542710124,6.05395308,118180.0,118170.0,0.02527567]
[1753542710759,6.10328308,118180.0,118170.0,0.00054567]
[1753542712328,6.11907185,118180.0,118170.0,0.00054567]
[1753542712958,6.14540757,118180.0,118170.0,0.00054567]
[1753542714191,6.18585184,118180.0,118170.0,0.00054567]
[1753542716348,1.29039584,118180.0,118170.0,0.00054567]
[1753542716489,6.18585184,118180.0,118170.0,0.00054567]
[1753542716849,6.18702184,118180.0,118170.0,0.00054567]
[1753542717513,6.18585184,118180.0,118170.0,0.00054567]
[1753542718105,6.16286982,118180.0,118170.0,0.00054567]
[1753542719818,6.1365341,118180.0,118170.0,0.00054567]
[1753542720959,1.2410781,118180.0,118170.0,0.00054567]
[1753542721157,6.1365341,118180.0,118170.0,0.00054567]
[1753542722574,6.1029041,118180.0,118170.0,0.00054567]
[1753542722963,6.0872041,118180.0,118170.0,0.02433567]
[1753542723431,6.08722568,118180.0,118170.0,0.02433567]
[1753542724351,6.10232568,118180.0,118170.0,0.00054567]
[1753542724555,1.24119968,118180.0,118170.0,0.00054567]
[1753542724895,6.13665568,118180.0,118170.0,0.00054567]
[1753542725340,6.14458101,118180.0,118170.0,0.00054567]
[1753542726093,6.14462971,118180.0,118170.0,0.00054567]
[1753542729066,6.14464343,118180.0,118170.0,0.00054567]
[1753542729418,6.11354343,118180.0,118170.0,0.00054567]
[1753542729618,6.09521343,118180.0,118170.0,0.02433567]
[1753542729845,6.09521343,118180.0,118170.0,0.00054567]
[1753542730062,6.14464343,118180.0,118170.0,0.00054567]
[1753542732148,6.09521343,118180.0,118170.0,0.00054567]
[1753542732448,6.09521343,118180.0,118170.0,0.02433567]
[1753542732664,6.11354343,118180.0,118170.0,0.00054567]
[1753542732871,6.14464343,118180.0,118170.0,0.00054567]
[1753542733264,6.13671516,118180.0,118170.0,0.00054567]
[1753542733473,6.10561516,118180.0,118170.0,0.00054567]
[1753542733666,1.21015916,118180.0,118170.0,0.00054567]
[1753542733871,6.10561516,118180.0,118170.0,0.00054567]
[1753542734763,6.08728516,118180.0,118170.0,0.00054567]
[1753542734974,6.08728516,118180.0,118170.0,0.02433567]
[1753542736217,1.19182916,118180.0,118170.0,0.02731567]
[1753542736406,6.08728516,118180.0,118170.0,0.02731567]
[1753542736618,6.47274218,118180.0,118170.0,0.00054567]
[1753542736847,6.65767218,118180.0,118170.0,0.00054567]
[1753542737077,6.28852015,118180.0,118170.0,0.00054567]
[1753542737708,6.2535901,118180.0,118170.0,0.00054567]
[1753542738118,6.2885201,118180.0,118170.0,0.00054567]
[1753542738320,6.65767712,118180.0,118170.0,0.00054567]
[1753542738817,1.76222112,118180.0,118170.0,0.00054567]
[1753542739009,6.2885201,118180.0,118170.0,0.00054567]
[1753542739386,6.31485582,118180.0,118170.0,0.00054567]
[1753542739912,6.29825582,118180.0,118170.0,0.00054567]
[1753542740122,6.27992582,118180.0,118170.0,0.00054567]
[1753542740334,5.8944688,118180.0,118170.0,0.02433567]
[1753542740555,6.23729038,118180.0,118170.0,0.02433567]
[1753542741193,6.23729038,118180.0,118170.0,0.00054567]
[1753542741400,6.6570774,118180.0,118170.0,0.00054567]
[1753542741623,6.28792038,118180.0,118170.0,0.00054567]
[1753542741814,6.6570774,118180.0,118170.0,0.00054567]
[1753542742891,6.68341312,118180.0,118170.0,0.00054567]
[1753542743112,6.2636261,118180.0,118170.0,0.00054567]
[1753542743311,6.2636261,118180.0,118170.0,0.02433567]
[1753542743562,6.26362546,118180.0,118170.0,0.02433567]
[1753542743768,6.28195546,118180.0,118170.0,0.00054567]
[1753542744212,6.23728974,118180.0,118170.0,0.02416567]
[1753542744436,6.65707676,118180.0,118170.0,0.00054567]
[1753542744662,6.70757773,118180.0,118170.0,0.00054567]
[1753542745598,6.70757773,118180.0,118170.0,1e-08]
[1753542745813,0.54070517,118170.0,118160.0,0.000903]
[1753542746035,6.55374701,118170.0,118160.0,0.00095144]
[1753542746355,6.57324701,118170.0,118160.0,0.00095144]
[1753542747264,6.57624701,118170.0,118160.0,0.00095144]
[1753542747926,6.57924231,118170.0,118160.0,0.00095144]
[1753542748602,6.60467831,118170.0,118160.0,0.00095144]
[1753542750012,1.70922231,118170.0,118160.0,0.00095144]
[1753542750234,6.60467831,118170.0,118160.0,0.00095144]
[1753542752337,6.60467255,118170.0,118160.0,0.00095144]
[1753542752600,6.65467255,118170.0,118160.0,1e-08]
[1753542753115,5.44235303,118150.0,118140.0,0.0303003]
[1753542753392,5.73950763,118150.0,118140.0,0.03144251]
[1753542753641,5.73950763,118150.0,118140.0,0.05506251]
[1753542753936,5.76494363,118150.0,118140.0,0.05506251]
[1753542754337,5.08167537,118140.0,118130.0,0.0004]
[1753542754558,5.55707122,118140.0,118130.0,0.00054571]
[1753542754774,6.01288669,118140.0,118130.0,0.00054571]